fUSD/lending_fUSD_20250609
["ID","MTS","AMOUNT","RATE_DAILY","PERIOD"]
[365107875,1749467456882,-809.2,0.00027397,2]
[365107876,1749467456892,-480.0,0.00027397,2]
[365107877,1749467456900,-480.0,0.00027397,2]
[365107878,1749467456909,-571.84,0.00027397,2]
[365107879,1749467456919,-480.0,0.00027397,2]
[365107880,1749467456928,-572.83,0.00027397,2]
[365107881,1749467456937,-480.0,0.00027397,2]
[365107882,1749467456946,-480.0,0.00027397,2]
[365107883,1749467456955,-480.0,0.00027397,2]
[365107884,1749467456964,-889.69,0.00027397,2]
[365107885,1749467456974,-480.0,0.00027397,2]
[365107886,1749467456983,-480.0,0.00027397,2]
[365107887,1749467456992,-480.0,0.00027397,2]
[365107888,1749467457001,-1751.09,0.00027397,2]
[365107889,1749467457011,-714.09,0.00027397,2]
[365107890,1749467457020,-480.0,0.00027397,2]
[365107891,1749467457030,-603.4,0.00027397,2]
[365107892,1749467457039,-318.51883787,0.00027397,2]
[365107893,1749467457049,-480.0,0.00027397,2]
[365107894,1749467457058,-993.71,0.00027397,2]
[365107895,1749467457068,-480.0,0.00027397,2]
[365107896,1749467457077,-222.15729077,0.00027397,2]
[365107897,1749467457086,-480.0,0.00027397,2]
[365107898,1749467457096,-480.0,0.00027397,2]
[365107899,1749467457105,-480.0,0.00027397,2]
[365107900,1749467457115,-480.0,0.00027397,2]
[365107901,1749467457124,-480.0,0.00027397,2]
[365107902,1749467457133,-1195.03,0.00027397,2]
[365107903,1749467457143,-480.0,0.00027397,2]
[365107904,1749467457152,-480.0,0.00027397,2]
[365107905,1749467457164,-1015.33,0.00027397,2]
[365107906,1749467457173,-508.78716392,0.00027397,2]
[365107907,1749467457183,-480.0,0.00027397,2]
[365107908,1749467457192,-480.0,0.00027397,2]
[365107909,1749467457203,-726.34,0.00027397,2]
[365107910,1749467457212,-480.0,0.00027397,2]
[365107911,1749467457221,-483.51,0.00027397,2]
[365107912,1749467457231,-572.87,0.00027397,2]
[365107913,1749467457242,-1308.47,0.00027397,2]
[365107914,1749467457251,-768.64,0.00027397,2]
[365107915,1749467457262,-590.83,0.00027397,2]
[365107916,1749467457271,-590.83,0.00027397,2]
[365107917,1749467457281,-590.83,0.00027397,2]
[365107918,1749467457294,-480.0,0.00027397,2]
[365107919,1749467457304,-2075.41541554,0.00027397,2]
[365107920,1749467457313,-484.49,0.00027397,2]
[365107921,1749467457323,-480.0,0.00027397,2]
[365107922,1749467457332,-480.0,0.00027397,2]
[365107923,1749467457342,-480.0,0.00027397,2]
[365107924,1749467457351,-300.0,0.00027397,2]
[365107925,1749467457361,-509.09,0.00027397,2]
[365107926,1749467457370,-480.0,0.00027397,2]
[365107927,1749467457380,-480.0,0.00027397,2]
[365107928,1749467457389,-480.0,0.00027397,2]
[365107929,1749467457399,-480.0,0.00027397,2]
[365107930,1749467457408,-1082.46,0.00027397,2]
[365107931,1749467457418,-1180.2,0.00027397,2]
[365107932,1749467457427,-613.24,0.00027397,2]
[365107933,1749467457437,-553.03,0.00027397,2]
[365107934,1749467457447,-480.0,0.00027397,2]
[365107935,1749467457456,-480.0,0.00027397,2]
[365107936,1749467457466,-1162.79,0.00027397,2]
[365107937,1749467457476,-480.0,0.00027397,2]
[365107938,1749467457486,-480.0,0.00027397,2]
[365107939,1749467457496,-480.0,0.00027397,2]
[365107940,1749467457506,-480.0,0.00027397,2]
[365107941,1749467457515,-480.0,0.00027397,2]
[365107942,1749467457525,-1574.4,0.00027397,2]
[365107943,1749467457535,-1404.78,0.00027397,2]
[365107944,1749467457544,-480.0,0.00027397,2]
[365107945,1749467457553,-480.0,0.00027397,2]
[365107946,1749467457562,-480.0,0.00027397,2]
[365107947,1749467457571,-553.5,0.00027397,2]
[365107948,1749467457580,-595.47,0.00027397,2]
[365107949,1749467457590,-480.0,0.00027397,2]
[365107950,1749467457599,-543.42703624,0.00027397,2]
[365107951,1749467457609,-480.0,0.00027397,2]
[365107952,1749467457618,-480.0,0.00027397,2]
[365107953,1749467457629,-480.0,0.00027397,2]
[365107954,1749467457638,-1368.39,0.00027397,2]
[365107955,1749467457647,-604.11422847,0.00027397,2]
[365107956,1749467457656,-480.0,0.00027397,2]
[365107957,1749467457665,-480.0,0.00027397,2]
[365107958,1749467457675,-480.0,0.00027397,2]
[365107959,1749467457684,-480.0,0.00027397,2]
[365107960,1749467457694,-480.0,0.00027397,2]
[365107961,1749467457704,-480.0,0.00027397,2]
[365107962,1749467457713,-672.49,0.00027397,2]
[365107963,1749467457723,-480.0,0.00027397,2]
[365107964,1749467457732,-484.35,0.00027397,2]
[365107965,1749467457742,-480.0,0.00027397,2]
[365107966,1749467457752,-480.0,0.00027397,2]
[365107967,1749467457761,-750.53,0.00027397,2]
[365107968,1749467457771,-179.87,0.00027397,2]
[365107969,1749467457780,-683.08,0.00027397,2]
[365107970,1749467457790,-480.0,0.00027397,2]
[365107971,1749467457800,-480.0,0.00027397,2]
[365107972,1749467457810,-678.54,0.00027397,2]
[365107973,1749467457819,-480.0,0.00027397,2]
[365107974,1749467457829,-480.0,0.00027397,2]
[365107975,1749467457838,-480.0,0.00027397,2]
[365107976,1749467457848,-516.27,0.00027397,2]
[365107977,1749467457857,-618.68,0.00027397,2]
[365107978,1749467457867,-480.0,0.00027397,2]
[365107979,1749467457877,-480.0,0.00027397,2]
[365107980,1749467457887,-1596.5,0.00027397,2]
[365107981,1749467457897,-480.0,0.00027397,2]
[365107982,1749467457907,-480.0,0.00027397,2]
[365107983,1749467457916,-963.2,0.00027397,2]
[365107984,1749467457925,-751.13,0.00027397,2]
[365107985,1749467457935,-480.0,0.00027397,2]
[365107986,1749467457944,-480.0,0.00027397,2]
[365107987,1749467457954,-480.0,0.00027397,2]
[365107988,1749467457963,-480.0,0.00027397,2]
[365107989,1749467457973,-480.0,0.00027397,2]
[365107990,1749467457983,-701.92,0.00027397,2]
[365107991,1749467457992,-478.66531887,0.00027397,2]
[365107992,1749467458002,-480.0,0.00027397,2]
[365107993,1749467458012,-480.0,0.00027397,2]
[365107994,1749467458021,-480.0,0.00027397,2]
[365107995,1749467458031,-571.45,0.00027397,2]
[365107996,1749467458040,-480.0,0.00027397,2]
[365107997,1749467458050,-985.49,0.00027397,2]
[365107998,1749467458059,-848.03,0.00027397,2]
[365107999,1749467458069,-812.41,0.00027397,2]
[365108000,1749467458078,-410.94815683,0.00027397,2]
[365108001,1749467458088,-609.71940111,0.00027397,2]
[365108002,1749467458097,-480.0,0.00027397,2]
[365108003,1749467458107,-480.0,0.00027397,2]
[365108004,1749467458116,-480.0,0.00027397,2]
[365108005,1749467458126,-694.25,0.00027397,2]
[365108006,1749467458135,-607.16,0.00027397,2]
[365108007,1749467458145,-1593.32,0.00027397,2]
[365108008,1749467458155,-480.0,0.00027397,2]
[365108009,1749467458169,-480.0,0.00027397,2]
[365108010,1749467458179,-929.53,0.00027397,2]
[365108011,1749467458188,-480.0,0.00027397,2]
[365108012,1749467458198,-480.0,0.00027397,2]
[365108013,1749467458208,-216.59019525,0.00027397,2]
[365108014,1749467458219,-480.0,0.00027397,2]
[365108015,1749467458229,-480.0,0.00027397,2]
[365108016,1749467458240,-480.0,0.00027397,2]
[365108017,1749467458251,-480.0,0.00027397,2]
[365108018,1749467458261,-778.0,0.00027397,2]
[365108019,1749467458271,-775.36,0.00027397,2]
[365108020,1749467458281,-169.68373153,0.00027397,2]
[365108021,1749467458290,-200.56707478,0.00027397,2]
[365108022,1749467458300,-480.0,0.00027397,2]
[365108023,1749467458309,-495.79171895,0.00027397,2]
[365108024,1749467458319,-914.16,0.00027397,2]
[365108025,1749467458329,-525.31,0.00027397,2]
[365108026,1749467458339,-480.0,0.00027397,2]
[365108027,1749467458349,-665.27,0.00027397,2]
[365108028,1749467458360,-480.0,0.00027397,2]
[365108029,1749467458369,-746.05,0.00027397,2]
[365108030,1749467458379,-820.23,0.00027397,2]
[365108031,1749467458388,-2259.36,0.00027397,2]
[365108032,1749467458398,-480.0,0.00027397,2]
[365108033,1749467458408,-1295.49,0.00027397,2]
[365108034,1749467458417,-480.0,0.00027397,2]
[365108035,1749467458428,-480.0,0.00027397,2]
[365108036,1749467458438,-1732.0,0.00027397,2]
[365108037,1749467458447,-480.0,0.00027397,2]
[365108038,1749467458457,-1848.92,0.00027397,2]
[365108039,1749467458466,-990.87,0.00027397,2]
[365108040,1749467458479,-586.59,0.00027397,2]
[365108041,1749467458628,-1356.93,0.00027397,2]
[365108042,1749467458639,-1000.0,0.00027397,2]
[365108043,1749467458648,-3717.07,0.00027397,2]
[365108044,1749467458659,-480.0,0.00027397,2]
[365108045,1749467458669,-772.28,0.00027397,2]
[365108046,1749467458679,-480.0,0.00027397,2]
[365108047,1749467458689,-480.0,0.00027397,2]
[365108048,1749467458699,-480.0,0.00027397,2]
[365108049,1749467458710,-480.0,0.00027397,2]
[365108050,1749467458720,-802.39,0.00027397,2]
[365108051,1749467458730,-583.65,0.00027397,2]
[365108052,1749467458740,-505.76378479,0.00027397,2]
[365108053,1749467458749,-575.9,0.00027397,2]
[365108054,1749467458759,-480.0,0.00027397,2]
[365108055,1749467458769,-570.51,0.00027397,2]
[365108056,1749467458779,-3228.84,0.00027397,2]
[365108057,1749467458788,-286.3187913,0.00027397,2]
[365108058,1749467458797,-784.8,0.00027397,2]
[365108059,1749467458806,-547.07,0.00027397,2]
[365108060,1749467458817,-763.27,0.00027397,2]
[365108061,1749467458826,-480.0,0.00027397,2]
[365108062,1749467458836,-600.0,0.00027397,30]
[365108063,1749467458846,-600.0,0.00027397,30]
[365108064,1749467458856,-480.0,0.00027397,2]
[365108065,1749467458865,-600.0,0.00027397,30]
[365108066,1749467458875,-480.0,0.00027397,2]
[365108067,1749467458885,-1534.26,0.00027397,2]
[365108068,1749467458894,-773.54,0.00027397,2]
[365108069,1749467458904,-480.0,0.00027397,2]
[365108070,1749467458914,-502.44,0.00027397,2]
[365108071,1749467458924,-480.0,0.00027397,2]
[365108072,1749467458934,-1170.03,0.00027397,2]
[365108073,1749467458943,-480.0,0.00027397,2]
[365108074,1749467458953,-3012.44,0.00027397,2]
[365108075,1749467458962,-480.0,0.00027397,2]
[365108076,1749467458972,-512.4,0.00027397,2]
[365108077,1749467458981,-480.0,0.00027397,2]
[365108078,1749467458991,-480.0,0.00027397,2]
[365108079,1749467459001,-1442.87,0.00027397,2]
[365108080,1749467459011,-1519.91,0.00027397,2]
[365108081,1749467459020,-480.0,0.00027397,2]
[365108082,1749467459029,-480.0,0.00027397,2]
[365108083,1749467459039,-480.0,0.00027397,2]
[365108084,1749467459048,-891.08,0.00027397,2]
[365108085,1749467459058,-480.0,0.00027397,2]
[365108086,1749467459068,-480.0,0.00027397,2]
[365108087,1749467459078,-480.0,0.00027397,2]
[365108088,1749467459088,-1678.45,0.00027397,2]
[365108089,1749467459098,-1398.24,0.00027397,2]
[365108090,1749467459108,-1165.26,0.00027397,2]
[365108091,1749467459117,-593.04385352,0.00027397,2]
[365108092,1749467459128,-2319.82,0.00027397,2]
[365108093,1749467459137,-2517.22,0.00027397,2]
[365108094,1749467459148,-862.85,0.00027397,2]
[365108095,1749467459161,-22947.35,0.00027397,2]
[365108096,1749467459171,-608.58575062,0.00027397,2]
[365108097,1749467459181,-1731.91,0.00027397,2]
[365108098,1749467459191,-534.36,0.00027397,2]
[365108099,1749467459202,-506.07,0.00027397,2]
[365108100,1749467459212,-945.9,0.00027397,2]
[365108101,1749467459222,-3651.45,0.00027397,2]
[365108102,1749467459231,-480.0,0.00027397,2]
[365108103,1749467459243,-1014.19,0.00027397,2]
[365108104,1749467459257,-480.0,0.00027397,2]
[365108105,1749467459267,-1143.4,0.00027397,2]
[365108106,1749467459277,-3119.95,0.00027397,2]
[365108107,1749467459287,-480.0,0.00027397,2]
[365108108,1749467459297,-1000.0,0.00027397,2]
[365108109,1749467459307,-1139.15,0.00027397,2]
[365108110,1749467459316,-554.28,0.00027397,2]
[365108111,1749467459326,-797.93,0.00027397,2]
[365108112,1749467459336,-1412.46,0.00027397,2]
[365108113,1749467459346,-480.0,0.00027397,2]
[365108114,1749467459358,-1207.75,0.00027397,2]
[365108115,1749467459368,-809.74,0.00027397,2]
[365108116,1749467459379,-794.47,0.00027397,2]
[365108117,1749467459388,-755.36,0.00027397,2]
[365108118,1749467459398,-4431.71,0.00027397,2]
[365108119,1749467459408,-2400.49,0.00027397,2]
[365108120,1749467459418,-1225.84,0.00027397,2]
[365108121,1749467459427,-480.0,0.00027397,2]
[365108122,1749467459437,-480.0,0.00027397,2]
[365108123,1749467459447,-2389.33,0.00027397,2]
[365108124,1749467459456,-480.0,0.00027397,2]
[365108125,1749467459466,-2500.85,0.00027397,2]
[365108126,1749467459476,-480.0,0.00027397,2]
[365108127,1749467459486,-8933.26,0.00027397,2]
[365108128,1749467459496,-480.0,0.00027397,2]
[365108129,1749467459506,-480.0,0.00027397,2]
[365108130,1749467459516,-399.16639809,0.00027397,2]
[365108131,1749467459525,-1040.21,0.00027397,2]
[365108132,1749467459535,-1072.67,0.00027397,2]
[365108133,1749467459544,-480.0,0.00027397,2]
[365108134,1749467459554,-480.0,0.00027397,2]
[365108135,1749467459563,-673.54,0.00027397,2]
[365108136,1749467459573,-520.82,0.00027397,2]
[365108137,1749467459583,-480.0,0.00027397,2]
[365108138,1749467459592,-850.95,0.00027397,2]
[365108139,1749467459603,-480.0,0.00027397,2]
[365108140,1749467459612,-480.0,0.00027397,2]
[365108141,1749467459622,-446.60473685,0.00027397,2]
[365108142,1749467459631,-1107.88,0.00027397,2]
[365108143,1749467459641,-6752.31,0.00027397,2]
[365108144,1749467459651,-480.0,0.00027397,2]
[365108145,1749467459660,-480.0,0.00027397,2]
[365108146,1749467459669,-607.72,0.00027397,2]
[365108147,1749467459679,-812.64,0.00027397,2]
[365108148,1749467459689,-3490.21,0.00027397,2]
[365108149,1749467459698,-480.0,0.00027397,2]
[365108150,1749467459707,-480.0,0.00027397,2]
[365108151,1749467459717,-480.0,0.00027397,2]
[365108152,1749467459726,-917.72,0.00027397,2]
[365108153,1749467459735,-2566.68,0.00027397,2]
[365108154,1749467459745,-1030.26,0.00027397,2]
[365108155,1749467459754,-480.0,0.00027397,2]
[365108156,1749467459763,-480.0,0.00027397,2]
[365108157,1749467459773,-1336.25,0.00027397,2]
[365108158,1749467459783,-1450.58,0.00027397,2]
[365108159,1749467459792,-519.85,0.00027397,2]
[365108160,1749467459802,-900.38,0.00027397,2]
[365108161,1749467459811,-1051.44,0.00027397,2]
[365108162,1749467459820,-1227.58,0.00027397,2]
[365108163,1749467459830,-3715.28,0.00027397,2]
[365108164,1749467459840,-480.0,0.00027397,2]
[365108165,1749467459849,-875.29,0.00027397,2]
[365108166,1749467459859,-1383.42,0.00027397,2]
[365108167,1749467459869,-480.0,0.00027397,2]
[365108168,1749467459879,-674.7,0.00027397,2]
[365108169,1749467459889,-3019.42,0.00027397,2]
[365108170,1749467459898,-480.0,0.00027397,2]
[365108171,1749467459907,-767.5,0.00027397,2]
[365108172,1749467459916,-2987.01,0.00027397,2]
[365108173,1749467459926,-872.18,0.00027397,2]
[365108174,1749467459936,-1344.66,0.00027397,2]
[365108175,1749467459945,-606.82,0.00027397,2]
[365108176,1749467459954,-1574.26,0.00027397,2]
[365108177,1749467459964,-607.38,0.00027397,2]
[365108178,1749467459974,-480.0,0.00027397,2]
[365108179,1749467459983,-735.84,0.00027397,2]
[365108180,1749467459993,-1442.46,0.00027397,2]
[365108181,1749467460003,-3563.25,0.00027397,2]
[365108182,1749467460013,-3563.25,0.00027397,2]
[365108183,1749467460022,-3563.25,0.00027397,2]
[365108184,1749467460032,-809.97,0.00027397,2]
[365108185,1749467460042,-618.8,0.00027397,2]
[365108186,1749467460052,-1263.55,0.00027397,2]
[365108187,1749467460063,-1058.49,0.00027397,2]
[365108188,1749467460072,-480.0,0.00027397,2]
[365108189,1749467460082,-480.0,0.00027397,2]
[365108190,1749467460091,-480.0,0.00027397,2]
[365108191,1749467460101,-530.38,0.00027397,2]
[365108192,1749467460110,-1223.63,0.00027397,2]
[365108193,1749467460120,-480.0,0.00027397,2]
[365108194,1749467460132,-1146.91,0.00027397,2]
[365108195,1749467460142,-1285.75,0.00027397,2]
[365108196,1749467460152,-480.0,0.00027397,2]
[365108197,1749467460165,-942.47,0.00027397,2]
[365108198,1749467460175,-1980.86,0.00027397,2]
[365108199,1749467460185,-485.07,0.00027397,2]
[365108200,1749467460196,-1095.79,0.00027397,2]
[365108201,1749467460207,-497.05,0.00027397,2]
[365108202,1749467460217,-1708.15,0.00027397,2]
[365108203,1749467460227,-481.51222496,0.00027397,2]
[365108204,1749467460239,-807.4,0.00027397,2]
[365108205,1749467460249,-495.71906902,0.00027397,2]
[365108206,1749467460260,-1444.88,0.00027397,2]
[365108207,1749467460270,-1313.01,0.00027397,2]
[365108208,1749467460281,-1682.67,0.00027397,2]
[365108209,1749467460291,-480.0,0.00027397,2]
[365108210,1749467460302,-480.0,0.00027397,2]
[365108211,1749467460313,-2278.58,0.00027397,2]
[365108212,1749467460323,-1818.04,0.00027397,2]
[365108213,1749467460334,-480.0,0.00027397,2]
[365108214,1749467460344,-480.0,0.00027397,2]
[365108215,1749467460354,-480.0,0.00027397,2]
[365108216,1749467460365,-536.59,0.00027397,2]
[365108217,1749467460376,-975.65,0.00027397,2]
[365108218,1749467460386,-480.0,0.00027397,2]
[365108219,1749467460396,-731.9,0.00027397,2]
[365108220,1749467460406,-510.45,0.00027397,2]
[365108221,1749467460417,-480.0,0.00027397,2]
[365108222,1749467460427,-705.59,0.00027397,2]
[365108223,1749467460437,-1698.66,0.00027397,2]
[365108224,1749467460447,-480.0,0.00027397,2]
[365108225,1749467460457,-657.35,0.00027397,2]
[365108226,1749467460466,-887.04,0.00027397,2]
[365108227,1749467460476,-507.54,0.00027397,2]
[365108228,1749467460486,-574.68,0.00027397,2]
[365108229,1749467460496,-490.81,0.00027397,2]
[365108230,1749467460505,-646.2,0.00027397,2]
[365108231,1749467460515,-480.0,0.00027397,2]
[365108232,1749467460525,-2133.36,0.00027397,2]
[365108233,1749467460535,-480.0,0.00027397,2]
[365108234,1749467460545,-3929.33,0.00027397,2]
[365108235,1749467460554,-1202.3,0.00027397,2]
[365108236,1749467460568,-823.05,0.00027397,2]
[365108237,1749467460579,-1235.84,0.00027397,2]
[365108238,1749467460588,-573.71,0.00027397,2]
[365108239,1749467460598,-500.0,0.00027397,2]
[365108240,1749467460609,-500.0,0.00027397,2]
[365108241,1749467460618,-480.0,0.00027397,2]
[365108242,1749467460631,-500.0,0.00027397,2]
[365108243,1749467460641,-1357.69,0.00027397,2]
[365108244,1749467460651,-2452.83,0.00027397,2]
[365108245,1749467460661,-1822.6,0.00027397,2]
[365108246,1749467460671,-1908.91,0.00027397,2]
[365108247,1749467460681,-683.03,0.00027397,2]
[365108248,1749467460691,-480.0,0.00027397,2]
[365108249,1749467460701,-897.53,0.00027397,2]
[365108250,1749467460712,-480.0,0.00027397,2]
[365108251,1749467460722,-1705.95,0.00027397,2]
[365108252,1749467460732,-480.0,0.00027397,2]
[365108253,1749467460742,-558.25,0.00027397,2]
[365108254,1749467460752,-480.0,0.00027397,2]
[365108255,1749467460762,-774.8,0.00027397,2]
[365108256,1749467460772,-767.98,0.00027397,2]
[365108257,1749467460782,-480.0,0.00027397,2]
[365108258,1749467460792,-2089.01,0.00027397,2]
[365108259,1749467461112,-1397.47,0.00027397,2]
[365108260,1749467461123,-931.16,0.00027397,2]
[365108261,1749467461133,-480.0,0.00027397,2]
[365108262,1749467461142,-1599.14,0.00027397,2]
[365108263,1749467461153,-761.61,0.00027397,2]
[365108264,1749467461167,-633.28,0.00027397,2]
[365108265,1749467461176,-644.0,0.00027397,2]
[365108266,1749467461186,-877.16,0.00027397,2]
[365108267,1749467461197,-480.0,0.00027397,2]
[365108268,1749467461208,-774.21,0.00027397,2]
[365108269,1749467461219,-1493.93,0.00027397,2]
[365108270,1749467461229,-554.92,0.00027397,2]
[365108271,1749467461240,-528.04,0.00027397,2]
[365108272,1749467461251,-480.0,0.00027397,2]
[365108273,1749467461261,-654.96,0.00027397,2]
[365108274,1749467461271,-1337.67,0.00027397,2]
[365108275,1749467461281,-480.0,0.00027397,2]
[365108276,1749467461291,-1222.29,0.00027397,2]
[365108277,1749467461301,-480.0,0.00027397,2]
[365108278,1749467461311,-480.0,0.00027397,2]
[365108279,1749467461322,-1409.83,0.00027397,2]
[365108280,1749467461331,-559.11,0.00027397,2]
[365108281,1749467461341,-701.79,0.00027397,2]
[365108282,1749467461351,-717.62,0.00027397,2]
[365108283,1749467461361,-957.18,0.00027397,2]
[365108284,1749467461372,-922.55,0.00027397,2]
[365108285,1749467461382,-300.0,0.00027397,2]
[365108286,1749467461391,-700.0,0.00027397,2]
[365108287,1749467461402,-150.0,0.00027397,2]
[365108288,1749467461412,-588.0,0.000274,2]
[365108289,1749467461423,-722.20333749,0.000274,2]
[365108290,1749467461433,-351.61,0.00027539,2]
[365108291,1749467461443,-631.02059644,0.00027616,2]
[365108292,1749467461454,-1000.0,0.00027779,2]
[365108293,1749467461464,-4000.0,0.00028007,4]
[365108294,1749467461475,-150.0,0.00028118,2]
[365108295,1749467461486,-1600.0,0.00028124,120]
[365108296,1749467461496,-1630.0,0.00028166,2]
[365108297,1749467461506,-5804.85401955,0.00028183,2]
[365108298,1749467461516,-3663.69499472,0.00028287,30]
[365108299,1749467461526,-5105.56995105,0.00028287,30]
[365108300,1749467461535,-500.0,0.00028379,120]
[365108301,1749467461544,-2000.0,0.00028394,60]
[365108302,1749467461554,-213.37586264,0.000284,19]
[365108303,1749467461564,-1630.0,0.00028456,2]
[365108304,1749467461574,-1036.70095268,0.00028562,2]
[365108305,1749467461583,-2000.0,0.000287,2]
[365108306,1749467461594,-1630.0,0.00028747,2]
[365108307,1749467461603,-150.0,0.00028839,2]
[365108308,1749467461613,-351.61,0.00028909,2]
[365108309,1749467461623,-833.29909032,0.00029,30]
[365108310,1749467461633,-833.29909032,0.00029,30]
[365108311,1749467461643,-1630.0,0.00029037,2]
[365108312,1749467461652,-463.32952577,0.00029037,2]
[365108313,1749467461662,-1333.0,0.00029096,7]
[365108314,1749467461671,-532.37269024,0.00029133,2]
[365108315,1749467461681,-4000.0,0.00029207,4]
[365108316,1749467461691,-1630.0,0.00029327,2]
[365108317,1749467461701,-252.94647335,0.00029335,2]
[365108318,1749467461710,-948.39,0.00029415,2]
[365108319,1749467461720,-150.0,0.0002956,2]
[365108320,1749467461731,-500.0,0.00029617,2]
[365108321,1749467461740,-1630.0,0.00029618,2]
[365108322,1749467461750,-5804.85401955,0.00029862,2]
[365108323,1749467461759,-1630.0,0.00029908,2]
[365108324,1749467461769,-1036.70095268,0.00029911,2]
[365108325,1749467461778,-50000.0,0.0003,20]
[365108326,1749467461788,-214.0,0.0003,2]
[365108327,1749467461799,-158.29431669,0.0003,60]
[365108328,1749467461809,-158.29431668,0.0003,60]
[365108329,1749467461820,-158.29431668,0.0003,60]
[365108330,1749467461829,-158.29431668,0.0003,60]
[365108331,1749467461839,-205.0,0.0003,14]
[365108332,1749467461848,-153.285334,0.00030136,2]
[365108333,1749467461859,-155.859352,0.00030136,2]
[365108334,1749467461869,-480.0,0.00030136,2]
[365108335,1749467461880,-480.0,0.00030136,2]
[365108336,1749467461890,-230.70353731,0.00030136,2]
[365108337,1749467461900,-500.34278752,0.00030136,2]
[365108338,1749467461910,-758.31,0.00030136,2]
[365108339,1749467461920,-480.0,0.00030136,2]
[365108340,1749467461930,-593.76,0.00030136,2]
[365108341,1749467461939,-480.0,0.00030136,2]
[365108342,1749467461949,-480.0,0.00030136,2]
[365108343,1749467461959,-527.06,0.00030136,2]
[365108344,1749467461969,-480.0,0.00030136,2]
[365108345,1749467461979,-752.26,0.00030136,2]
[365108346,1749467461988,-378.04033964,0.00030136,2]
[365108347,1749467461998,-443.42754636,0.00030136,2]
[365108348,1749467462008,-345.71176165,0.00030136,2]
[365108349,1749467462018,-480.0,0.00030136,2]
[365108350,1749467462027,-480.0,0.00030136,2]
[365108351,1749467462037,-570.48,0.00030136,2]
[365108352,1749467462047,-500.0,0.00030136,2]
[365108353,1749467462056,-480.0,0.00030136,2]
[365108354,1749467462066,-480.0,0.00030136,2]
[365108355,1749467462075,-480.0,0.00030136,2]
[365108356,1749467462085,-480.0,0.00030136,2]
[365108357,1749467462095,-480.0,0.00030136,2]
[365108358,1749467462104,-480.0,0.00030136,2]
[365108359,1749467462114,-480.0,0.00030136,2]
[365108360,1749467462124,-480.0,0.00030136,2]
[365108361,1749467462133,-480.0,0.00030136,2]
[365108362,1749467462143,-795.43,0.00030136,2]
[365108363,1749467462152,-579.59,0.00030136,2]
[365108364,1749467462165,-1024.32,0.00030136,2]
[365108365,1749467462174,-480.0,0.00030136,2]
[365108366,1749467462183,-480.0,0.00030136,2]
[365108367,1749467462193,-798.33,0.00030136,2]
[365108368,1749467462203,-480.0,0.00030136,2]
[365108369,1749467462213,-1145.79,0.00030136,2]
[365108370,1749467462223,-613.4,0.00030136,2]
[365108371,1749467462233,-480.0,0.00030136,2]
[365108372,1749467462244,-621.53,0.00030136,2]
[365108373,1749467462254,-214.27860205,0.00030136,2]
[365108374,1749467462264,-480.0,0.00030136,2]